[Event "Live Chess"]
[Site "Chess.com"]
[Date "2024.06.02"]
[Round "-"]
[White "EdenHazard8"]
[Black "TJ-W"]
[Result "1-0"]
[WhiteElo "2201"]
[BlackElo "1571"]
[TimeControl "300"]
[EndTime "1:51:40 PDT"]
[Termination "EdenHazard8 won by resignation"]

1. e4 {[%clk 0:04:58.8]} 1... e5 {[%clk 0:04:57.1]} 2. Nf3 {[%clk 0:04:58]} 2...
Nc6 {[%clk 0:04:56.1]} 3. Bc4 {[%clk 0:04:56.2]} 3... Nf6 {[%clk 0:04:50.5]} 4.
Ng5 {[%clk 0:04:55.2]} 4... d5 {[%clk 0:04:48.9]} 5. exd5 {[%clk 0:04:54.2]}
5... Na5 {[%clk 0:04:48.2]} 6. Bb5+ {[%clk 0:04:53]} 6... c6 {[%clk 0:04:47.7]}
7. dxc6 {[%clk 0:04:52.1]} 7... bxc6 {[%clk 0:04:47.6]} 8. Bd3 {[%clk 0:04:51]}
8... Bc5 {[%clk 0:04:27.5]} 9. O-O {[%clk 0:04:46]} 9... O-O {[%clk 0:04:21.7]}
10. Nc3 {[%clk 0:04:39.7]} 10... h6 {[%clk 0:04:13]} 11. Nf3 {[%clk 0:04:37.5]}
11... Ng4 {[%clk 0:04:03.9]} 12. h3 {[%clk 0:04:27]} 12... Nxf2 {[%clk
0:03:57.8]} 13. Rxf2 {[%clk 0:04:26.1]} 13... Bxf2+ {[%clk 0:03:55.3]} 14. Kxf2
{[%clk 0:04:26]} 14... Re8 {[%clk 0:03:48.6]} 15. Kg1 {[%clk 0:04:03.9]} 15...
f5 {[%clk 0:03:45.6]} 16. Bf1 {[%clk 0:03:57.9]} 16... e4 {[%clk 0:03:33.6]} 17.
Nh2 {[%clk 0:03:42.5]} 17... Qb6+ {[%clk 0:03:14.4]} 18. Kh1 {[%clk 0:03:41.3]}
18... Ba6 {[%clk 0:03:13.5]} 19. Bxa6 {[%clk 0:03:38]} 19... Qxa6 {[%clk
0:03:11.5]} 20. Qf1 {[%clk 0:03:37]} 20... Qxf1+ {[%clk 0:03:05.1]} 21. Nxf1
{[%clk 0:03:36.9]} 21... Nc4 {[%clk 0:03:03.1]} 22. d3 {[%clk 0:03:31.9]} 22...
exd3 {[%clk 0:02:57.5]} 23. cxd3 {[%clk 0:03:31.8]} 23... Ne5 {[%clk 0:02:36.7]}
24. d4 {[%clk 0:03:06.3]} 24... Nc4 {[%clk 0:02:32.4]} 25. b3 {[%clk 0:03:02.2]}
25... Nd6 {[%clk 0:02:27.1]} 26. Bf4 {[%clk 0:03:00.7]} 26... Ne4 {[%clk
0:02:20.9]} 27. Nxe4 {[%clk 0:02:59.7]} 27... Rxe4 {[%clk 0:02:12.4]} 28. Be5
{[%clk 0:02:59]} 28... Rd8 {[%clk 0:02:07.2]} 29. Ng3 {[%clk 0:02:57.3]} 29...
Rxe5 {[%clk 0:01:48.5]} 30. dxe5 {[%clk 0:02:55.3]} 30... f4 {[%clk 0:01:47.7]}
31. Nf5 {[%clk 0:02:54]} 31... Re8 {[%clk 0:01:40.1]} 32. Re1 {[%clk 0:02:51.4]}
32... g6 {[%clk 0:01:33.1]} 33. Nxh6+ {[%clk 0:02:49.2]} 33... Kg7 {[%clk
0:01:31.6]} 34. Ng4 {[%clk 0:02:48.1]} 34... g5 {[%clk 0:01:29.8]} 35. e6 {[%clk
0:02:47]} 35... Kg6 {[%clk 0:01:28.1]} 36. Re5 {[%clk 0:02:41.8]} 36... Kh5
{[%clk 0:01:22.9]} 37. Nf6+ {[%clk 0:02:40]} 1-0

[Event "Live Chess"]
[Site "Chess.com"]
[Date "2024.06.02"]
[Round "-"]
[White "Crowded_House"]
[Black "upoe610"]
[Result "1-0"]
[WhiteElo "1683"]
[BlackElo "2179"]
[TimeControl "300"]
[EndTime "1:51:48 PDT"]
[Termination "Crowded_House won by resignation"]

1. d4 {[%clk 0:04:59.3]} 1... Nf6 {[%clk 0:04:57]} 2. Bg5 {[%clk 0:04:58.7]}
2... c5 {[%clk 0:04:54.4]} 3. Bxf6 {[%clk 0:04:54.8]} 3... gxf6 {[%clk
0:04:53.4]} 4. dxc5 {[%clk 0:04:53.5]} 4... e6 {[%clk 0:04:51.7]} 5. b4 {[%clk
0:04:51]} 5... a5 {[%clk 0:04:50.5]} 6. c3 {[%clk 0:04:46.6]} 6... f5 {[%clk
0:04:48.3]} 7. Nd2 {[%clk 0:04:37.3]} 7... axb4 {[%clk 0:04:45.1]} 8. cxb4
{[%clk 0:04:35.9]} 8... Bg7 {[%clk 0:04:44.8]} 9. Rb1 {[%clk 0:04:32]} 9... Rxa2
{[%clk 0:04:43.2]} 10. e3 {[%clk 0:04:28.7]} 10... Nc6 {[%clk 0:04:40.1]} 11.
Bd3 {[%clk 0:04:23.5]} 11... Bc3 {[%clk 0:04:37.6]} 12. Nf3 {[%clk 0:04:20.9]}
12... Nxb4 {[%clk 0:04:36.8]} 13. Bc4 {[%clk 0:04:16.2]} 13... Ra8 {[%clk
0:04:20.8]} 14. O-O {[%clk 0:04:11.2]} 14... d5 {[%clk 0:04:18]} 15. Bb5+ {[%clk
0:04:03.7]} 15... Bd7 {[%clk 0:04:15.1]} 16. Bxd7+ {[%clk 0:04:02.7]} 16... Qxd7
{[%clk 0:04:14.3]} 17. Qb3 {[%clk 0:03:53.5]} 17... Bxd2 {[%clk 0:04:12.5]} 18.
Nxd2 {[%clk 0:03:52]} 18... Nc6 {[%clk 0:04:11.9]} 19. Qxb7 {[%clk 0:03:48.5]}
19... Qxb7 {[%clk 0:04:09.7]} 20. Rxb7 {[%clk 0:03:47.9]} 20... O-O {[%clk
0:04:09.3]} 21. Rfb1 {[%clk 0:03:35.4]} 21... Ne5 {[%clk 0:04:07.6]} 22. f4
{[%clk 0:03:26.7]} 22... Ng4 {[%clk 0:04:05.5]} 23. R7b3 {[%clk 0:03:18.8]}
23... Rfc8 {[%clk 0:04:02.5]} 24. h3 {[%clk 0:03:17.8]} 24... Nf6 {[%clk
0:03:59.7]} 25. Rb5 {[%clk 0:03:15]} 25... Ra2 {[%clk 0:03:57.4]} 26. Nf3 {[%clk
0:03:11.6]} 26... Ne4 {[%clk 0:03:55.7]} 27. Nd4 {[%clk 0:02:55.7]} 27... Nc3
{[%clk 0:03:50.6]} 28. Rb8 {[%clk 0:02:50.4]} 28... Rxb8 {[%clk 0:03:45.4]} 29.
Rxb8+ {[%clk 0:02:49.2]} 29... Kg7 {[%clk 0:03:45.3]} 30. c6 {[%clk 0:02:46.9]}
30... Ra1+ {[%clk 0:03:42.5]} 31. Kh2 {[%clk 0:02:44.6]} 31... Rc1 {[%clk
0:03:38.6]} 32. c7 {[%clk 0:02:42.3]} 32... Ne2 {[%clk 0:03:32.3]} 33. c8=Q
{[%clk 0:02:38]} 33... Rxc8 {[%clk 0:03:31]} 34. Rxc8 {[%clk 0:02:37.3]} 1-0

[Event "Live Chess"]
[Site "Chess.com"]
[Date "2024.06.02"]
[Round "-"]
[White "RockTroll"]
[Black "yarek"]
[Result "1-0"]
[WhiteElo "2180"]
[BlackElo "1732"]
[TimeControl "300"]
[EndTime "1:51:54 PDT"]
[Termination "RockTroll won by checkmate"]

1. Nf3 {[%clk 0:04:58.2]} 1... g6 {[%clk 0:04:58.2]} 2. d3 {[%clk 0:04:57.3]}
2... Bg7 {[%clk 0:04:57.6]} 3. Nc3 {[%clk 0:04:55.7]} 3... c6 {[%clk 0:04:57.2]}
4. g3 {[%clk 0:04:54.4]} 4... d5 {[%clk 0:04:56.8]} 5. Bg2 {[%clk 0:04:53.8]}
5... e5 {[%clk 0:04:55.8]} 6. Bd2 {[%clk 0:04:49.2]} 6... d4 {[%clk 0:04:45.5]}
7. Nb1 {[%clk 0:04:47.4]} 7... Ne7 {[%clk 0:04:35.6]} 8. Qc1 {[%clk 0:04:43.6]}
8... O-O {[%clk 0:04:32.8]} 9. Bh6 {[%clk 0:04:42.1]} 9... Nf5 {[%clk 0:04:29]}
10. Bxg7 {[%clk 0:04:40.6]} 10... Kxg7 {[%clk 0:04:27.2]} 11. g4 {[%clk
0:04:38.6]} 11... Nh4 {[%clk 0:04:23.6]} 12. Nxh4 {[%clk 0:04:31.8]} 12... Qxh4
{[%clk 0:04:22.5]} 13. h3 {[%clk 0:04:30.1]} 13... f5 {[%clk 0:04:08.3]} 14. Bf3
{[%clk 0:04:20.6]} 14... Be6 {[%clk 0:03:57.6]} 15. Nd2 {[%clk 0:04:19.4]} 15...
Nd7 {[%clk 0:03:50.5]} 16. gxf5 {[%clk 0:04:12.4]} 16... Bxf5 {[%clk 0:03:45.2]}
17. Nc4 {[%clk 0:04:09.8]} 17... Be6 {[%clk 0:03:20.4]} 18. b3 {[%clk
0:04:02.2]} 18... Bxc4 {[%clk 0:03:10.7]} 19. bxc4 {[%clk 0:04:01]} 19... Nc5
{[%clk 0:03:05.4]} 20. a4 {[%clk 0:03:49.8]} 20... e4 {[%clk 0:03:02.8]} 21.
dxe4 {[%clk 0:03:45]} 21... Nxe4 {[%clk 0:03:00.7]} 22. Bxe4 {[%clk 0:03:39]}
22... Qxe4 {[%clk 0:02:52.1]} 23. Rg1 {[%clk 0:03:27.2]} 23... Rae8 {[%clk
0:02:46.3]} 24. Qd2 {[%clk 0:03:26.4]} 24... c5 {[%clk 0:02:41.6]} 25. Qd3
{[%clk 0:03:23.1]} 25... Qh4 {[%clk 0:02:29.7]} 26. Qg3 {[%clk 0:03:19.5]} 26...
Qe4 {[%clk 0:02:23.9]} 27. Qd3 {[%clk 0:03:16.2]} 27... Qh4 {[%clk 0:02:20.1]}
28. Rg3 {[%clk 0:03:13.7]} 28... Rf7 {[%clk 0:02:09.6]} 29. Rf3 {[%clk 0:02:59]}
29... Rfe7 {[%clk 0:02:02.8]} 30. O-O-O {[%clk 0:02:45.3]} 30... Rxe2 {[%clk
0:01:58.3]} 31. Qb3 {[%clk 0:02:41.6]} 31... Qe7 {[%clk 0:01:47.5]} 32. Kb2
{[%clk 0:02:35.8]} 32... b6 {[%clk 0:01:39.3]} 33. Qd3 {[%clk 0:02:26.8]} 33...
Qd7 {[%clk 0:01:28.6]} 34. Kb3 {[%clk 0:02:23]} 34... a6 {[%clk 0:01:25.9]} 35.
h4 {[%clk 0:02:19.5]} 35... R2e5 {[%clk 0:01:14.9]} 36. Rh1 {[%clk 0:02:15.9]}
36... h6 {[%clk 0:01:06.5]} 37. Rg1 {[%clk 0:02:11.1]} 37... R5e6 {[%clk
0:01:00.8]} 38. Rfg3 {[%clk 0:02:09]} 38... Qf7 {[%clk 0:00:53.5]} 39. Rf3
{[%clk 0:02:06.9]} 39... Qe7 {[%clk 0:00:50.7]} 40. Rfg3 {[%clk 0:01:59.6]}
40... Qf7 {[%clk 0:00:49.1]} 41. Kb2 {[%clk 0:01:56.9]} 41... Qd7 {[%clk
0:00:42.4]} 42. Rxg6+ {[%clk 0:01:54.3]} 42... Rxg6 {[%clk 0:00:31.3]} 43. Qxg6+
{[%clk 0:01:52.8]} 43... Kh8 {[%clk 0:00:22.6]} 44. Qxh6+ {[%clk 0:01:49.1]}
44... Qh7 {[%clk 0:00:22.1]} 45. Qf6+ {[%clk 0:01:48.7]} 45... Qg7 {[%clk
0:00:09]} 46. Qxg7# {[%clk 0:01:47.8]} 1-0

[Event "Live Chess"]
[Site "Chess.com"]
[Date "2024.06.02"]
[Round "-"]
[White "nitrofish07"]
[Black "TheSmoulderingMaster"]
[Result "0-1"]
[WhiteElo "2080"]
[BlackElo "1778"]
[TimeControl "300"]
[EndTime "1:52:09 PDT"]
[Termination "TheSmoulderingMaster won on time"]

1. e4 {[%clk 0:04:58.7]} 1... c5 {[%clk 0:04:58.4]} 2. Nf3 {[%clk 0:04:57.8]}
2... d6 {[%clk 0:04:57.7]} 3. d4 {[%clk 0:04:57.2]} 3... cxd4 {[%clk 0:04:56.8]}
4. Nxd4 {[%clk 0:04:57.1]} 4... Nf6 {[%clk 0:04:55.9]} 5. Nc3 {[%clk 0:04:56.8]}
5... g6 {[%clk 0:04:55]} 6. Be3 {[%clk 0:04:53.5]} 6... Bg7 {[%clk 0:04:54.1]}
7. f3 {[%clk 0:04:52.1]} 7... O-O {[%clk 0:04:53.2]} 8. Qd2 {[%clk 0:04:50.5]}
8... Nc6 {[%clk 0:04:52.4]} 9. Bc4 {[%clk 0:04:49.1]} 9... Ne5 {[%clk
0:04:50.9]} 10. Bb3 {[%clk 0:04:46.7]} 10... Bd7 {[%clk 0:04:50.2]} 11. O-O-O
{[%clk 0:04:35.1]} 11... Qa5 {[%clk 0:04:44.8]} 12. Kb1 {[%clk 0:04:32]} 12...
Rfc8 {[%clk 0:04:42.1]} 13. h4 {[%clk 0:04:27]} 13... b5 {[%clk 0:04:32.7]} 14.
g4 {[%clk 0:04:20.5]} 14... Nc4 {[%clk 0:04:29.7]} 15. Bxc4 {[%clk 0:04:03.8]}
15... bxc4 {[%clk 0:04:23.8]} 16. h5 {[%clk 0:04:01.7]} 16... Rab8 {[%clk
0:04:13.8]} 17. Ka1 {[%clk 0:03:25.1]} 17... Qb4 {[%clk 0:04:08.6]} 18. Rb1
{[%clk 0:03:20.2]} 18... Rb6 {[%clk 0:04:06.1]} 19. hxg6 {[%clk 0:03:04.3]}
19... fxg6 {[%clk 0:04:03.6]} 20. g5 {[%clk 0:03:01.5]} 20... Nh5 {[%clk
0:04:00.9]} 21. Rhd1 {[%clk 0:02:14]} 21... Rcb8 {[%clk 0:03:49.2]} 22. Nde2
{[%clk 0:01:40.9]} 22... Ra6 {[%clk 0:03:40.6]} 23. b3 {[%clk 0:01:17.7]} 23...
Ng3 {[%clk 0:03:34.6]} 24. Nd4 {[%clk 0:00:42.8]} 24... d5 {[%clk 0:02:44.6]}
25. bxc4 {[%clk 0:00:30.9]} 25... Qd6 {[%clk 0:02:27.4]} 26. Rxb8+ {[%clk
0:00:30]} 26... Qxb8 {[%clk 0:02:26.4]} 27. Nxd5 {[%clk 0:00:19.6]} 27... Be6
{[%clk 0:02:12.3]} 28. Rb1 {[%clk 0:00:18.4]} 28... Qe8 {[%clk 0:02:02.9]} 29.
Qb4 {[%clk 0:00:17.3]} 29... Qf7 {[%clk 0:01:46.1]} 30. Nxe7+ {[%clk 0:00:15.8]}
30... Kh8 {[%clk 0:01:41.3]} 31. Nd5 {[%clk 0:00:15.7]} 31... Bxd5 {[%clk
0:01:39.5]} 32. cxd5 {[%clk 0:00:15]} 32... Rb6 {[%clk 0:01:34.5]} 33. Qe1
{[%clk 0:00:09.2]} 33... Qxf3 {[%clk 0:01:29.2]} 34. Rxb6 {[%clk 0:00:07.8]}
34... axb6 {[%clk 0:01:26.8]} 35. Kb1 {[%clk 0:00:07.2]} 35... Nxe4 {[%clk
0:01:23.9]} 36. Ne6 {[%clk 0:00:06.2]} 36... Nc3+ {[%clk 0:01:15.1]} 37. Kc1
{[%clk 0:00:05.6]} 37... Qxd5 {[%clk 0:01:09.9]} 38. Nxg7 {[%clk 0:00:03.4]}
38... Kxg7 {[%clk 0:01:07.8]} 39. Qxc3+ {[%clk 0:00:02.5]} 39... Kf7 {[%clk
0:01:04.6]} 40. Qd4 {[%clk 0:00:02.4]} 40... Qh1+ {[%clk 0:00:58.7]} 41. Kb2
{[%clk 0:00:01.3]} 41... Qc6 {[%clk 0:00:52.1]} 42. Qf6+ {[%clk 0:00:01.2]}
42... Qxf6+ {[%clk 0:00:50.3]} 43. gxf6 {[%clk 0:00:01.1]} 43... Kxf6 {[%clk
0:00:50]} 44. Kc3 {[%clk 0:00:01]} 44... h5 {[%clk 0:00:48.6]} 45. Bxb6 {[%clk
0:00:00.9]} 45... g5 {[%clk 0:00:47.8]} 46. Bf2 {[%clk 0:00:00.8]} 46... Kf5
{[%clk 0:00:46.1]} 47. Kd3 {[%clk 0:00:00.7]} 47... Kg4 {[%clk 0:00:45.5]} 48.
Ke3 {[%clk 0:00:00.6]} 48... Kh3 {[%clk 0:00:44.7]} 49. Kf3 {[%clk 0:00:00.5]}
49... g4+ {[%clk 0:00:38.4]} 50. Kf4 {[%clk 0:00:00.4]} 50... h4 {[%clk
0:00:36.1]} 51. Bxh4 {[%clk 0:00:00.3]} 51... Kxh4 {[%clk 0:00:34.8]} 52. c4
{[%clk 0:00:00.2]} 52... g3 {[%clk 0:00:33.7]} 53. c5 {[%clk 0:00:00.1]} 53...
g2 {[%clk 0:00:32.8]} 0-1

[Event "Live Chess"]
[Site "Chess.com"]
[Date "2024.06.02"]
[Round "-"]
[White "vincents82"]
[Black "missedJariChance"]
[Result "1-0"]
[WhiteElo "2005"]
[BlackElo "1356"]
[TimeControl "300"]
[EndTime "1:52:50 PDT"]
[Termination "vincents82 won by resignation"]

1. e4 {[%clk 0:04:57.1]} 1... c5 {[%clk 0:04:58.3]} 2. Nf3 {[%clk 0:04:55.9]}
2... e6 {[%clk 0:04:53.7]} 3. d4 {[%clk 0:04:54.8]} 3... cxd4 {[%clk 0:04:52]}
4. Nxd4 {[%clk 0:04:54.3]} 4... Nc6 {[%clk 0:04:50.5]} 5. Nc3 {[%clk 0:04:53.3]}
5... a6 {[%clk 0:04:49.2]} 6. g3 {[%clk 0:04:52.8]} 6... Qc7 {[%clk 0:04:47.6]}
7. Bg2 {[%clk 0:04:52.3]} 7... Nf6 {[%clk 0:04:45.2]} 8. O-O {[%clk 0:04:51.7]}
8... Be7 {[%clk 0:04:09.4]} 9. Re1 {[%clk 0:04:50.4]} 9... O-O {[%clk
0:04:06.7]} 10. Nxc6 {[%clk 0:04:44.6]} 10... bxc6 {[%clk 0:04:01.8]} 11. e5
{[%clk 0:04:43.8]} 11... Nd5 {[%clk 0:03:57.2]} 12. Qg4 {[%clk 0:04:42.6]} 12...
f5 {[%clk 0:03:39.8]} 13. Qe2 {[%clk 0:04:32.2]} 13... Bb7 {[%clk 0:03:29.4]}
14. Nxd5 {[%clk 0:04:21.3]} 14... cxd5 {[%clk 0:03:27.1]} 15. c3 {[%clk
0:04:20]} 15... Bc5 {[%clk 0:03:09.2]} 16. Kh1 {[%clk 0:04:16.9]} 16... Bc6
{[%clk 0:02:53.1]} 17. Be3 {[%clk 0:04:13.7]} 17... Bb5 {[%clk 0:02:44.6]} 18.
Qd2 {[%clk 0:04:07.5]} 18... Bxe3 {[%clk 0:02:40.3]} 19. Qxe3 {[%clk 0:04:03.5]}
19... Rab8 {[%clk 0:02:36.5]} 20. b3 {[%clk 0:03:58.7]} 20... Bc6 {[%clk
0:02:29]} 21. Qd4 {[%clk 0:03:57.6]} 21... Qa5 {[%clk 0:02:09.9]} 22. f4 {[%clk
0:03:53.8]} 22... Rbc8 {[%clk 0:02:03.1]} 23. b4 {[%clk 0:03:52.6]} 23... Qc7
{[%clk 0:02:00.1]} 24. Re3 {[%clk 0:03:48.4]} 24... Bb5 {[%clk 0:01:57.4]} 25.
a4 {[%clk 0:03:43.7]} 25... Bc4 {[%clk 0:01:47]} 26. Bf1 {[%clk 0:03:38.5]}
26... Qb7 {[%clk 0:01:35]} 27. Kg1 {[%clk 0:03:28.6]} 27... Bxf1 {[%clk
0:01:29.7]} 28. Rxf1 {[%clk 0:03:26.5]} 28... Rc4 {[%clk 0:01:28.1]} 29. Qd2
{[%clk 0:03:25.5]} 29... Rfc8 {[%clk 0:01:25.6]} 30. Rff3 {[%clk 0:03:20.7]}
30... Qb6 {[%clk 0:01:23.8]} 31. Kg2 {[%clk 0:03:18.9]} 31... Kf7 {[%clk
0:01:09.6]} 32. Rd3 {[%clk 0:03:14.9]} 32... Re4 {[%clk 0:01:04.7]} 33. Rfe3
{[%clk 0:03:11.8]} 33... Rcc4 {[%clk 0:01:01.4]} 34. Rxe4 {[%clk 0:03:06]} 34...
Rxe4 {[%clk 0:00:59.5]} 35. Rd4 {[%clk 0:03:01.8]} 35... Rxd4 {[%clk 0:00:49.8]}
36. Qxd4 {[%clk 0:02:57.8]} 36... Qb7 {[%clk 0:00:45.3]} 37. Qc5 {[%clk
0:02:53.4]} 37... d4+ {[%clk 0:00:32.1]} 38. Kf2 {[%clk 0:02:48.9]} 38... d3
{[%clk 0:00:23.2]} 39. Qd4 {[%clk 0:02:43.5]} 39... Qe4 {[%clk 0:00:20.1]} 40.
Qxe4 {[%clk 0:02:30.9]} 40... fxe4 {[%clk 0:00:17.7]} 41. b5 {[%clk 0:02:30.3]}
41... axb5 {[%clk 0:00:12.4]} 42. a5 {[%clk 0:02:29.6]} 42... Ke8 {[%clk
0:00:08.4]} 43. a6 {[%clk 0:02:28.7]} 43... Kd8 {[%clk 0:00:07.7]} 44. a7 {[%clk
0:02:28]} 44... Kc7 {[%clk 0:00:05.3]} 45. a8=Q {[%clk 0:02:26.3]} 1-0

[Event "Live Chess"]
[Site "Chess.com"]
[Date "2024.06.02"]
[Round "-"]
[White "seasidecastle27"]
[Black "juniortay"]
[Result "0-1"]
[WhiteElo "1931"]
[BlackElo "2388"]
[TimeControl "300"]
[EndTime "1:52:52 PDT"]
[Termination "juniortay won by checkmate"]

1. d4 {[%clk 0:04:54.8]} 1... d5 {[%clk 0:04:57.8]} 2. Nf3 {[%clk 0:04:53.6]}
2... c5 {[%clk 0:04:56.7]} 3. Bf4 {[%clk 0:04:52]} 3... e6 {[%clk 0:04:55.2]} 4.
e3 {[%clk 0:04:51.1]} 4... Bd6 {[%clk 0:04:54.4]} 5. Bg3 {[%clk 0:04:48.7]} 5...
Nf6 {[%clk 0:04:52.7]} 6. Nbd2 {[%clk 0:04:47]} 6... O-O {[%clk 0:04:50.9]} 7.
c3 {[%clk 0:04:45.4]} 7... Qc7 {[%clk 0:04:50.1]} 8. dxc5 {[%clk 0:04:40.3]}
8... Qxc5 {[%clk 0:04:48.3]} 9. Bxd6 {[%clk 0:04:36.3]} 9... Qxd6 {[%clk
0:04:47.3]} 10. Nc4 {[%clk 0:04:32.9]} 10... Qc7 {[%clk 0:04:46]} 11. Nce5
{[%clk 0:04:31.7]} 11... Nc6 {[%clk 0:04:44.8]} 12. Nxc6 {[%clk 0:04:30.1]}
12... bxc6 {[%clk 0:04:44.3]} 13. Bd3 {[%clk 0:04:27.8]} 13... Rb8 {[%clk
0:04:43]} 14. Qe2 {[%clk 0:04:25.9]} 14... c5 {[%clk 0:04:40]} 15. b3 {[%clk
0:04:21.5]} 15... e5 {[%clk 0:04:36.6]} 16. Bc2 {[%clk 0:04:17.5]} 16... Re8
{[%clk 0:04:27.3]} 17. O-O {[%clk 0:04:15.7]} 17... Rb6 {[%clk 0:04:25.4]} 18.
Rad1 {[%clk 0:04:07.7]} 18... Bg4 {[%clk 0:04:22.6]} 19. h3 {[%clk 0:04:05.1]}
19... Bh5 {[%clk 0:04:21.8]} 20. g4 {[%clk 0:04:00.3]} 20... Nxg4 {[%clk
0:04:19.3]} 21. hxg4 {[%clk 0:03:58.6]} 21... Bxg4 {[%clk 0:04:19.2]} 22. e4
{[%clk 0:03:57.3]} 22... Rg6 {[%clk 0:03:46.3]} 23. exd5 {[%clk 0:03:31.2]}
23... Bxf3+ {[%clk 0:03:39.7]} 24. Bxg6 {[%clk 0:03:28.4]} 24... Bxe2 {[%clk
0:03:39.1]} 25. d6 {[%clk 0:03:20.7]} 25... Qd7 {[%clk 0:03:35]} 26. Bxh7+
{[%clk 0:03:11.6]} 26... Kxh7 {[%clk 0:03:33.5]} 27. Rfe1 {[%clk 0:03:09.6]}
27... Qg4+ {[%clk 0:03:31.9]} 28. Kh1 {[%clk 0:03:07.5]} 28... Qh3+ {[%clk
0:03:29.2]} 29. Kg1 {[%clk 0:03:06]} 29... Bf3 {[%clk 0:03:28.5]} 30. d7 {[%clk
0:03:03.9]} 30... Qg2# {[%clk 0:03:27.1]} 0-1

[Event "Live Chess"]
[Site "Chess.com"]
[Date "2024.06.02"]
[Round "-"]
[White "dmitro74"]
[Black "Grace6363"]
[Result "1-0"]
[WhiteElo "1702"]
[BlackElo "1148"]
[TimeControl "300"]
[EndTime "1:52:53 PDT"]
[Termination "dmitro74 won by resignation"]

1. d4 {[%clk 0:04:57.6]} 1... Nf6 {[%clk 0:04:56.5]} 2. c4 {[%clk 0:04:56.3]}
2... g6 {[%clk 0:04:55.3]} 3. Nc3 {[%clk 0:04:54.6]} 3... d5 {[%clk 0:04:54.4]}
4. cxd5 {[%clk 0:04:53]} 4... Nxd5 {[%clk 0:04:53.9]} 5. e4 {[%clk 0:04:52.4]}
5... Nxc3 {[%clk 0:04:53]} 6. bxc3 {[%clk 0:04:51.5]} 6... Bg7 {[%clk
0:04:51.8]} 7. Bc4 {[%clk 0:04:49]} 7... c5 {[%clk 0:04:48.8]} 8. Ne2 {[%clk
0:04:47.2]} 8... Nc6 {[%clk 0:04:47.5]} 9. O-O {[%clk 0:04:44.8]} 9... a6 {[%clk
0:04:44.8]} 10. Be3 {[%clk 0:04:40.8]} 10... b5 {[%clk 0:04:43.6]} 11. Bb3
{[%clk 0:04:32.5]} 11... c4 {[%clk 0:04:42.2]} 12. Bc2 {[%clk 0:04:30.9]} 12...
Bb7 {[%clk 0:04:36.6]} 13. e5 {[%clk 0:04:17.4]} 13... O-O {[%clk 0:04:32.5]}
14. Be4 {[%clk 0:04:12.5]} 14... Rb8 {[%clk 0:04:24.1]} 15. Bf3 {[%clk
0:04:06.9]} 15... e6 {[%clk 0:04:18.3]} 16. Qd2 {[%clk 0:04:01]} 16... f6 {[%clk
0:04:14.9]} 17. exf6 {[%clk 0:03:37.2]} 17... Bxf6 {[%clk 0:04:11.4]} 18. Bh6
{[%clk 0:03:36.4]} 18... Bg7 {[%clk 0:04:07.8]} 19. Bxg7 {[%clk 0:03:30.2]}
19... Kxg7 {[%clk 0:04:06.9]} 20. Qe3 {[%clk 0:03:27.1]} 20... Qf6 {[%clk
0:03:57.8]} 21. Ng3 {[%clk 0:03:19.1]} 21... Ne7 {[%clk 0:03:48.4]} 22. Bxb7
{[%clk 0:03:14.3]} 22... Rxb7 {[%clk 0:03:47.5]} 23. Ne4 {[%clk 0:03:11.9]}
23... Qf4 {[%clk 0:03:23.9]} 24. Nc5 {[%clk 0:03:00.7]} 24... Qxe3 {[%clk
0:03:20.2]} 25. fxe3 {[%clk 0:02:59]} 25... Rb6 {[%clk 0:03:08.2]} 26. Rxf8
{[%clk 0:02:55.2]} 26... Kxf8 {[%clk 0:03:01.5]} 27. Nd7+ {[%clk 0:02:53.5]} 1-0

[Event "Live Chess"]
[Site "Chess.com"]
[Date "2024.06.02"]
[Round "-"]
[White "Zhevzh1k7"]
[Black "Dhaydon19"]
[Result "0-1"]
[WhiteElo "1097"]
[BlackElo "2628"]
[TimeControl "300"]
[EndTime "1:52:54 PDT"]
[Termination "Dhaydon19 won by resignation"]

1. e4 {[%clk 0:04:57.7]} 1... c6 {[%clk 0:04:59.5]} 2. d4 {[%clk 0:04:55.6]}
2... d5 {[%clk 0:04:59.4]} 3. f3 {[%clk 0:04:54]} 3... e6 {[%clk 0:04:56.6]} 4.
Nc3 {[%clk 0:04:49.4]} 4... Nf6 {[%clk 0:04:55.3]} 5. e5 {[%clk 0:04:46.8]} 5...
Nfd7 {[%clk 0:04:54.3]} 6. Bf4 {[%clk 0:04:43.3]} 6... c5 {[%clk 0:04:53.3]} 7.
Bb5 {[%clk 0:04:38.6]} 7... a6 {[%clk 0:04:49.8]} 8. Bxd7+ {[%clk 0:04:36.4]}
8... Bxd7 {[%clk 0:04:48.8]} 9. Nge2 {[%clk 0:04:34.8]} 9... Nc6 {[%clk
0:04:47.5]} 10. O-O {[%clk 0:04:30.4]} 10... cxd4 {[%clk 0:04:41.8]} 11. Nxd4
{[%clk 0:04:28.6]} 11... Qc7 {[%clk 0:04:33.4]} 12. Re1 {[%clk 0:04:11.6]} 12...
Nxd4 {[%clk 0:04:31.8]} 13. Qxd4 {[%clk 0:04:09.5]} 13... Bc5 {[%clk 0:04:30.4]}
0-1

[Event "Live Chess"]
[Site "Chess.com"]
[Date "2024.06.02"]
[Round "-"]
[White "Pandreq"]
[Black "lateforthesky"]
[Result "0-1"]
[WhiteElo "1195"]
[BlackElo "2070"]
[TimeControl "300"]
[EndTime "1:52:57 PDT"]
[Termination "lateforthesky won on time"]

1. d4 {[%clk 0:04:58]} 1... Nf6 {[%clk 0:04:58.2]} 2. c4 {[%clk 0:04:57.3]} 2...
g6 {[%clk 0:04:55.9]} 3. Nc3 {[%clk 0:04:56.8]} 3... Bg7 {[%clk 0:04:54.9]} 4.
Nf3 {[%clk 0:04:56.1]} 4... d6 {[%clk 0:04:54.3]} 5. Bf4 {[%clk 0:04:54.1]} 5...
O-O {[%clk 0:04:52.1]} 6. e3 {[%clk 0:04:53]} 6... c5 {[%clk 0:04:48.4]} 7. Be2
{[%clk 0:04:46.5]} 7... cxd4 {[%clk 0:04:34.4]} 8. exd4 {[%clk 0:04:41.8]} 8...
Nc6 {[%clk 0:04:33.4]} 9. d5 {[%clk 0:04:36.4]} 9... e5 {[%clk 0:04:29]} 10.
dxc6 {[%clk 0:04:26.3]} 10... exf4 {[%clk 0:04:26.5]} 11. cxb7 {[%clk
0:04:23.8]} 11... Bxb7 {[%clk 0:04:25.7]} 12. O-O {[%clk 0:04:12.8]} 12... Re8
{[%clk 0:04:24.5]} 13. Re1 {[%clk 0:04:07.9]} 13... Qb6 {[%clk 0:04:18.7]} 14.
Rb1 {[%clk 0:03:46.1]} 14... Ng4 {[%clk 0:03:48.7]} 15. Rf1 {[%clk 0:03:15.8]}
15... Ne5 {[%clk 0:03:40.6]} 16. Nd5 {[%clk 0:02:55.7]} 16... Bxd5 {[%clk
0:03:35]} 17. Qxd5 {[%clk 0:02:51.1]} 17... Rac8 {[%clk 0:03:23.9]} 18. Nxe5
{[%clk 0:02:28.7]} 18... dxe5 {[%clk 0:03:20.5]} 19. b3 {[%clk 0:02:23.9]} 19...
e4 {[%clk 0:03:18.3]} 20. g3 {[%clk 0:02:08.2]} 20... f3 {[%clk 0:03:04.6]} 21.
Bd1 {[%clk 0:02:01]} 21... Rcd8 {[%clk 0:03:02.7]} 22. Qb5 {[%clk 0:01:52.7]}
22... Qe6 {[%clk 0:02:59.4]} 23. Bxf3 {[%clk 0:00:44]} 23... exf3 {[%clk
0:02:57.2]} 24. Qb7 {[%clk 0:00:43.4]} 24... Qf5 {[%clk 0:02:50.8]} 25. Rbd1
{[%clk 0:00:30.6]} 25... Bd4 {[%clk 0:02:27.5]} 26. Qc6 {[%clk 0:00:20.3]} 26...
Bb6 {[%clk 0:02:19.3]} 27. c5 {[%clk 0:00:09.7]} 27... Bxc5 {[%clk 0:02:08.4]}
28. Rxd8 {[%clk 0:00:03.8]} 28... Rxd8 {[%clk 0:02:07.4]} 29. Re1 {[%clk
0:00:01.5]} 29... Qe5 {[%clk 0:01:53.3]} 0-1